[Event "Titled Tuesday Blitz October 11 Late 2022"]
[White "Wieczorek, Oskar"]
[Black "Maksimovic, Bojan"]
[WhiteFideId "1133950"]
[BlackFideId "14408120"]
[WhiteElo "2404"]
[BlackElo "2447"]
[Result "1-0"]
[Round "06"]
[TimeControl "180+1"]
[Date "2022.10.11"]
[WhiteClock "0:00:28"]
[BlackClock "0:00:06"]

1. e4 {[%clk 0:03:00]}  g6 {[%clk 0:02:59]} 2. d4 {[%clk 0:03:00]}  Bg7 {[%clk 0:02:59]} 3. Nf3 {[%clk 0:03:00]}  d6 {[%clk 0:02:59]} 4. Bc4 {[%clk 0:03:00]}  Nf6 {[%clk 0:02:58]} 5. Qe2 {[%clk 0:02:57]}  O-O {[%clk 0:02:59]} 6. e5 {[%clk 0:02:57]}  dxe5 {[%clk 0:02:59]} 7. dxe5 {[%clk 0:02:58]}  Nd5 {[%clk 0:02:59]} 8. h3 {[%clk 0:02:57]}  c6 {[%clk 0:02:49]} 9. O-O {[%clk 0:02:56]}  Nd7 {[%clk 0:02:48]} 10. Rd1 {[%clk 0:02:53]}  Nc5 {[%clk 0:02:34]} 11. Be3 {[%clk 0:02:28]}  Ne6 {[%clk 0:02:33]} 12. Bxd5 {[%clk 0:02:18]}  cxd5 {[%clk 0:02:31]} 13. Nc3 {[%clk 0:02:17]}  d4 {[%clk 0:01:47]} 14. Nxd4 {[%clk 0:02:17]}  Nxd4 {[%clk 0:01:47]} 15. Bxd4 {[%clk 0:02:18]}  Be6 {[%clk 0:01:44]} 16. Bxa7 {[%clk 0:02:04]}  Qa5 {[%clk 0:01:44]} 17. Bd4 {[%clk 0:02:04]}  Rfd8 {[%clk 0:01:44]} 18. Qe3 {[%clk 0:01:59]}  b5 {[%clk 0:01:40]} 19. Ne4 {[%clk 0:01:24]}  b4 {[%clk 0:01:35]} 20. Nc5 {[%clk 0:01:14]}  Bd5 {[%clk 0:01:32]} 21. a3 {[%clk 0:01:06]}  Qb5 {[%clk 0:01:08]} 22. axb4 {[%clk 0:01:01]}  Rxa1 {[%clk 0:01:09]} 23. Rxa1 {[%clk 0:01:01]}  Qxb4 {[%clk 0:01:10]} 24. b3 {[%clk 0:00:47]}  Rc8 {[%clk 0:00:43]} 25. c4 {[%clk 0:00:40]}  Bc6 {[%clk 0:00:43]} 26. e6 {[%clk 0:00:33]}  f6 {[%clk 0:00:39]} 27. Ra7 {[%clk 0:00:32]}  Bf8 {[%clk 0:00:39]} 28. Bxf6 {[%clk 0:00:28]}  Qb6 {[%clk 0:00:07]} 29. Bd4 {[%clk 0:00:28]}  Qxa7 {[%clk 0:00:06]} 30. Qe5 {[%clk 0:00:28]} 1-0


[Site "https://www.chess.com"]

[Event "Titled Tuesday Blitz October 11 Late 2022"]
[White "Winterberg, Lukas"]
[Black "Thomforde-Toates, Noah"]
[WhiteFideId "24622702"]
[BlackFideId "30951992"]
[WhiteElo "2349"]
[BlackElo "2681"]
[Result "0-1"]
[Round "06"]
[TimeControl "180+1"]
[Date "2022.10.12"]
[WhiteClock "0:00:05"]
[BlackClock "0:01:04"]

1. d4 {[%clk 0:03:00]}  Nf6 {[%clk 0:02:59]} 2. Nf3 {[%clk 0:02:59]}  g6 {[%clk 0:03:00]} 3. c4 {[%clk 0:02:58]}  Bg7 {[%clk 0:03:00]} 4. Nc3 {[%clk 0:02:57]}  O-O {[%clk 0:03:01]} 5. e4 {[%clk 0:02:56]}  d6 {[%clk 0:03:01]} 6. Be2 {[%clk 0:02:55]}  e5 {[%clk 0:03:01]} 7. O-O {[%clk 0:02:55]}  exd4 {[%clk 0:03:01]} 8. Nxd4 {[%clk 0:02:55]}  Re8 {[%clk 0:03:02]} 9. f3 {[%clk 0:02:55]}  c6 {[%clk 0:02:58]} 10. Be3 {[%clk 0:02:55]}  d5 {[%clk 0:02:58]} 11. cxd5 {[%clk 0:02:56]}  Nxd5 {[%clk 0:02:58]} 12. Nxd5 {[%clk 0:02:55]}  cxd5 {[%clk 0:02:58]} 13. Qb3 {[%clk 0:02:52]}  Nc6 {[%clk 0:02:51]} 14. Rad1 {[%clk 0:02:52]}  Nxd4 {[%clk 0:02:49]} 15. Bxd4 {[%clk 0:02:51]}  Bxd4+ {[%clk 0:02:50]} 16. Rxd4 {[%clk 0:02:50]}  Qf6 {[%clk 0:02:50]} 17. Rfd1 {[%clk 0:02:19]}  dxe4 {[%clk 0:02:44]} 18. fxe4 {[%clk 0:02:17]}  Be6 {[%clk 0:02:42]} 19. Qe3 {[%clk 0:01:58]}  Qe5 {[%clk 0:02:41]} 20. Bc4 {[%clk 0:01:40]}  Rac8 {[%clk 0:02:32]} 21. Bxe6 {[%clk 0:01:37]}  Qxe6 {[%clk 0:02:33]} 22. b3 {[%clk 0:01:29]}  Rc2 {[%clk 0:02:30]} 23. R4d2 {[%clk 0:01:22]}  Rxd2 {[%clk 0:02:21]} 24. Rxd2 {[%clk 0:01:23]}  Qxe4 {[%clk 0:02:20]} 25. Qxe4 {[%clk 0:01:23]}  Rxe4 {[%clk 0:02:20]} 26. Rd7 {[%clk 0:01:23]}  Rb4 {[%clk 0:02:17]} 27. Kf2 {[%clk 0:01:23]}  Kg7 {[%clk 0:02:15]} 28. Ke3 {[%clk 0:01:22]}  Kf6 {[%clk 0:02:05]} 29. Kd3 {[%clk 0:01:19]}  Ke6 {[%clk 0:02:04]} 30. Rc7 {[%clk 0:01:19]}  Rb6 {[%clk 0:02:00]} 31. Ke4 {[%clk 0:01:05]}  h6 {[%clk 0:01:52]} 32. g3 {[%clk 0:01:02]}  Ra6 {[%clk 0:01:47]} 33. Rxb7 {[%clk 0:00:48]}  Rxa2 {[%clk 0:01:46]} 34. h4 {[%clk 0:00:49]}  Ra5 {[%clk 0:01:45]} 35. b4 {[%clk 0:00:46]}  Ra4 {[%clk 0:01:44]} 36. Kf3 {[%clk 0:00:45]}  Ra3+ {[%clk 0:01:42]} 37. Kf4 {[%clk 0:00:43]}  h5 {[%clk 0:01:40]} 38. Rc7 {[%clk 0:00:39]}  Ra4 {[%clk 0:01:39]} 39. Rb7 {[%clk 0:00:26]}  a5 {[%clk 0:01:38]} 40. Rb6+ {[%clk 0:00:25]}  Ke7 {[%clk 0:01:36]} 41. Ra6 {[%clk 0:00:22]}  Rxb4+ {[%clk 0:01:36]} 42. Kf3 {[%clk 0:00:22]}  a4 {[%clk 0:01:35]} 43. Ke3 {[%clk 0:00:21]}  Rb3+ {[%clk 0:01:35]} 44. Kf4 {[%clk 0:00:21]}  a3 {[%clk 0:01:35]} 45. Ra5 {[%clk 0:00:18]}  Ke6 {[%clk 0:01:33]} 46. Ra7 {[%clk 0:00:16]}  Rb4+ {[%clk 0:01:16]} 47. Kf3 {[%clk 0:00:15]}  Rb3+ {[%clk 0:01:16]} 48. Kf4 {[%clk 0:00:15]}  Kd5 {[%clk 0:01:08]} 49. Rxf7 {[%clk 0:00:15]}  Rb4+ {[%clk 0:01:09]} 50. Ke3 {[%clk 0:00:11]}  Ra4 {[%clk 0:01:09]} 51. Rf1 {[%clk 0:00:11]}  a2 {[%clk 0:01:09]} 52. Ra1 {[%clk 0:00:11]}  Ke5 {[%clk 0:01:09]} 53. Kf3 {[%clk 0:00:11]}  Ra3+ {[%clk 0:01:08]} 54. Kg2 {[%clk 0:00:10]}  Kf5 {[%clk 0:01:07]} 55. Kh3 {[%clk 0:00:07]}  Ke4 {[%clk 0:01:07]} 56. Kg2 {[%clk 0:00:07]}  Kd3 {[%clk 0:01:07]} 57. Kf3 {[%clk 0:00:05]}  Kc2+ {[%clk 0:01:04]} 58. Kf4 {[%clk 0:00:06]}  Kb2 {[%clk 0:01:04]} 59. Rxa2+ {[%clk 0:00:05]}  Kxa2 {[%clk 0:01:05]} 60. Kg5 {[%clk 0:00:05]}  Rxg3+ {[%clk 0:01:04]} 0-1


[Site "https://www.chess.com"]

[Event "Titled Tuesday Blitz October 11 Late 2022"]
[White "Zierk, Steven"]
[Black "Yuan, Qingyu"]
[WhiteFideId "2034255"]
[BlackFideId "8609772"]
[WhiteElo "2494"]
[BlackElo "2359"]
[Result "1-0"]
[Round "06"]
[TimeControl "180+1"]
[Date "2022.10.11"]
[WhiteClock "0:01:27"]
[BlackClock "0:00:14"]

1. e4 {[%clk 0:02:45]}  c6 {[%clk 0:03:00]} 2. d4 {[%clk 0:02:45]}  d5 {[%clk 0:03:00]} 3. exd5 {[%clk 0:02:46]}  cxd5 {[%clk 0:03:01]} 4. Bd3 {[%clk 0:02:47]}  Nc6 {[%clk 0:03:01]} 5. c3 {[%clk 0:02:47]}  Nf6 {[%clk 0:03:02]} 6. Bf4 {[%clk 0:02:47]}  Bg4 {[%clk 0:03:01]} 7. Qb3 {[%clk 0:02:48]}  Qd7 {[%clk 0:03:02]} 8. Nd2 {[%clk 0:02:48]}  e6 {[%clk 0:03:02]} 9. Ngf3 {[%clk 0:02:49]}  Bd6 {[%clk 0:03:02]} 10. Bxd6 {[%clk 0:02:48]}  Qxd6 {[%clk 0:03:02]} 11. O-O {[%clk 0:02:49]}  O-O {[%clk 0:03:01]} 12. Rae1 {[%clk 0:02:49]}  Bxf3 {[%clk 0:03:00]} 13. Nxf3 {[%clk 0:02:49]}  Qc7 {[%clk 0:03:00]} 14. Ne5 {[%clk 0:02:46]}  Nxe5 {[%clk 0:02:58]} 15. Rxe5 {[%clk 0:02:47]}  g6 {[%clk 0:02:46]} 16. g3 {[%clk 0:02:40]}  Kg7 {[%clk 0:02:40]} 17. Kg2 {[%clk 0:02:39]}  Rab8 {[%clk 0:02:36]} 18. h4 {[%clk 0:02:32]}  b5 {[%clk 0:02:27]} 19. a3 {[%clk 0:02:31]}  a5 {[%clk 0:02:26]} 20. Bxb5 {[%clk 0:02:28]}  a4 {[%clk 0:02:10]} 21. Qxa4 {[%clk 0:02:24]}  Qb6 {[%clk 0:02:10]} 22. c4 {[%clk 0:02:18]}  Qxd4 {[%clk 0:02:02]} 23. Re2 {[%clk 0:02:18]}  Qd3 {[%clk 0:01:44]} 24. Qc2 {[%clk 0:02:09]}  Qd4 {[%clk 0:01:26]} 25. Rd1 {[%clk 0:02:06]}  Qc5 {[%clk 0:01:21]} 26. Qc3 {[%clk 0:02:02]}  Rfc8 {[%clk 0:01:15]} 27. g4 {[%clk 0:01:50]}  dxc4 {[%clk 0:01:07]} 28. a4 {[%clk 0:01:43]}  h6 {[%clk 0:01:01]} 29. f4 {[%clk 0:01:40]}  Rxb5 {[%clk 0:00:35]} 30. axb5 {[%clk 0:01:39]}  Qxb5 {[%clk 0:00:35]} 31. g5 {[%clk 0:01:37]}  hxg5 {[%clk 0:00:29]} 32. fxg5 {[%clk 0:01:38]}  Kg8 {[%clk 0:00:28]} 33. Qxf6 {[%clk 0:01:36]}  c3 {[%clk 0:00:29]} 34. Rf2 {[%clk 0:01:31]}  c2 {[%clk 0:00:16]} 35. Qxf7+ {[%clk 0:01:29]}  Kh8 {[%clk 0:00:17]} 36. Qf6+ {[%clk 0:01:29]}  Kh7 {[%clk 0:00:17]} 37. Qe7+ {[%clk 0:01:28]}  Kh8 {[%clk 0:00:15]} 38. Rd8+ {[%clk 0:01:27]}  Rxd8 {[%clk 0:00:14]} 39. Qxd8+ {[%clk 0:01:28]}  Kg7 {[%clk 0:00:14]} 40. Qf8+ {[%clk 0:01:27]} 1-0


[Site "https://www.chess.com"]

[Event "Titled Tuesday Blitz October 11 Late 2022"]
[White "miragha_yev"]
[Black "De Souza, Cristiano Gomes"]
[BlackFideId "2151758"]
[WhiteElo "2747"]
[BlackElo "2068"]
[Result "1-0"]
[Round "06"]
[TimeControl "180+1"]
[Date "2022.10.12"]
[WhiteClock "0:00:42"]
[BlackClock "0:00:59"]

1. d4 {[%clk 0:02:09]}  Nf6 {[%clk 0:02:57]} 2. c4 {[%clk 0:02:09]}  g6 {[%clk 0:02:58]} 3. f3 {[%clk 0:02:08]}  Bg7 {[%clk 0:02:57]} 4. e4 {[%clk 0:02:07]}  d6 {[%clk 0:02:58]} 5. Be3 {[%clk 0:02:08]}  O-O {[%clk 0:02:57]} 6. Nc3 {[%clk 0:02:09]}  Nc6 {[%clk 0:02:56]} 7. Qd2 {[%clk 0:02:10]}  e5 {[%clk 0:02:52]} 8. Nge2 {[%clk 0:02:10]}  a6 {[%clk 0:02:48]} 9. d5 {[%clk 0:02:11]}  Na5 {[%clk 0:02:45]} 10. Nc1 {[%clk 0:02:08]}  c5 {[%clk 0:02:44]} 11. a3 {[%clk 0:01:55]}  b6 {[%clk 0:02:35]} 12. b4 {[%clk 0:01:54]}  Nb7 {[%clk 0:02:35]} 13. Be2 {[%clk 0:01:49]}  Nh5 {[%clk 0:02:33]} 14. Nd3 {[%clk 0:01:46]}  f5 {[%clk 0:02:30]} 15. O-O {[%clk 0:01:40]}  f4 {[%clk 0:02:29]} 16. Bf2 {[%clk 0:01:40]}  g5 {[%clk 0:02:21]} 17. bxc5 {[%clk 0:01:34]}  Nxc5 {[%clk 0:02:19]} 18. Rab1 {[%clk 0:01:24]}  Bd7 {[%clk 0:02:15]} 19. Nxc5 {[%clk 0:01:17]}  bxc5 {[%clk 0:02:14]} 20. Rb7 {[%clk 0:01:17]}  Rb8 {[%clk 0:02:09]} 21. Rfb1 {[%clk 0:01:16]}  Rxb7 {[%clk 0:02:09]} 22. Rxb7 {[%clk 0:01:16]}  Qc8 {[%clk 0:02:08]} 23. Qb2 {[%clk 0:01:14]}  Nf6 {[%clk 0:02:02]} 24. Qb6 {[%clk 0:01:11]}  Ne8 {[%clk 0:01:50]} 25. Qxa6 {[%clk 0:00:49]}  h5 {[%clk 0:01:45]} 26. Qa7 {[%clk 0:00:47]}  Nf6 {[%clk 0:01:35]} 27. Nb5 {[%clk 0:00:44]}  g4 {[%clk 0:01:05]} 28. Nxd6 {[%clk 0:00:43]}  Qd8 {[%clk 0:01:03]} 29. Bh4 {[%clk 0:00:44]}  gxf3 {[%clk 0:01:00]} 30. Bxf3 {[%clk 0:00:43]}  Bg4 {[%clk 0:00:59]} 31. Rxg7+ {[%clk 0:00:42]} 1-0


[Site "https://www.chess.com"]

[Event "Titled Tuesday Blitz October 11 Late 2022"]
[White "Andreikin, Dmitry"]
[Black "Kamsky, Gata"]
[WhiteFideId "4158814"]
[BlackFideId "2000024"]
[WhiteElo "2736"]
[BlackElo "2666"]
[Result "1-0"]
[Round "07"]
[TimeControl "180+1"]
[Date "2022.10.11"]
[WhiteClock "0:00:20"]
[BlackClock "0:00:03"]

1. Nf3 {[%clk 0:03:00]}  Nf6 {[%clk 0:02:59]} 2. c4 {[%clk 0:03:00]}  b6 {[%clk 0:02:45]} 3. Nc3 {[%clk 0:02:55]}  Bb7 {[%clk 0:02:45]} 4. d4 {[%clk 0:02:55]}  e6 {[%clk 0:02:45]} 5. a3 {[%clk 0:02:55]}  d6 {[%clk 0:02:30]} 6. d5 {[%clk 0:02:51]}  e5 {[%clk 0:02:29]} 7. e4 {[%clk 0:02:49]}  Nbd7 {[%clk 0:02:28]} 8. b4 {[%clk 0:02:46]}  Be7 {[%clk 0:02:27]} 9. Bd3 {[%clk 0:02:44]}  O-O {[%clk 0:02:26]} 10. O-O {[%clk 0:02:44]}  g6 {[%clk 0:02:20]} 11. Bh6 {[%clk 0:02:39]}  Re8 {[%clk 0:02:19]} 12. Nd2 {[%clk 0:02:40]}  Nh5 {[%clk 0:02:14]} 13. Be2 {[%clk 0:02:28]}  Nf4 {[%clk 0:02:13]} 14. Bf3 {[%clk 0:02:28]}  Bg5 {[%clk 0:02:12]} 15. Bxg5 {[%clk 0:02:28]}  Qxg5 {[%clk 0:02:12]} 16. g3 {[%clk 0:02:27]}  Nh5 {[%clk 0:01:44]} 17. Bxh5 {[%clk 0:02:26]}  Qxh5 {[%clk 0:01:32]} 18. Qxh5 {[%clk 0:02:25]}  gxh5 {[%clk 0:01:32]} 19. f4 {[%clk 0:02:20]}  c6 {[%clk 0:01:24]} 20. fxe5 {[%clk 0:02:01]}  Nxe5 {[%clk 0:01:24]} 21. Rf6 {[%clk 0:02:01]}  Rad8 {[%clk 0:01:20]} 22. Raf1 {[%clk 0:02:01]}  Bc8 {[%clk 0:01:15]} 23. dxc6 {[%clk 0:01:57]}  Nxc6 {[%clk 0:01:14]} 24. Rxf7 {[%clk 0:01:55]}  Bh3 {[%clk 0:01:09]} 25. R1f4 {[%clk 0:01:52]}  Be6 {[%clk 0:01:04]} 26. Rc7 {[%clk 0:01:48]}  Rc8 {[%clk 0:01:04]} 27. Nb5 {[%clk 0:01:40]}  Red8 {[%clk 0:00:27]} 28. Rxc8 {[%clk 0:01:16]}  Bxc8 {[%clk 0:00:26]} 29. Rf6 {[%clk 0:01:16]}  Bh3 {[%clk 0:00:22]} 30. Nf3 {[%clk 0:01:05]}  a6 {[%clk 0:00:18]} 31. Nxd6 {[%clk 0:00:59]}  Kg7 {[%clk 0:00:18]} 32. Rf7+ {[%clk 0:00:55]}  Kg8 {[%clk 0:00:17]} 33. Rf6 {[%clk 0:00:51]}  Kg7 {[%clk 0:00:18]} 34. Ne8+ {[%clk 0:00:49]}  Rxe8 {[%clk 0:00:18]} 35. Rxc6 {[%clk 0:00:48]}  Bg4 {[%clk 0:00:15]} 36. Kf2 {[%clk 0:00:35]}  Rxe4 {[%clk 0:00:15]} 37. h3 {[%clk 0:00:36]}  Bf5 {[%clk 0:00:13]} 38. Nd2 {[%clk 0:00:27]}  Rd4 {[%clk 0:00:13]} 39. Ke2 {[%clk 0:00:28]}  Rd3 {[%clk 0:00:12]} 40. g4 {[%clk 0:00:27]}  hxg4 {[%clk 0:00:10]} 41. hxg4 {[%clk 0:00:27]}  Bd7 {[%clk 0:00:06]} 42. Rc7 {[%clk 0:00:21]}  Rd4 {[%clk 0:00:05]} 43. Ke3 {[%clk 0:00:21]}  Rd6 {[%clk 0:00:03]} 44. c5 {[%clk 0:00:20]} 1-0


[Site "https://www.chess.com"]

[Event "Titled Tuesday Blitz October 11 Late 2022"]
[White "Ardila, Oscar Humberto"]
[Black "Sanchez, Robert"]
[WhiteFideId "4404742"]
[BlackFideId "2034360"]
[WhiteElo "1898"]
[BlackElo "2423"]
[Result "1-0"]
[Round "07"]
[TimeControl "180+1"]
[Date "2022.10.12"]
[WhiteClock "0:00:41"]
[BlackClock "0:00:19"]

1. d4 {[%clk 0:02:59]}  d5 {[%clk 0:02:59]} 2. c4 {[%clk 0:02:58]}  c6 {[%clk 0:03:00]} 3. Nc3 {[%clk 0:02:58]}  Nf6 {[%clk 0:03:00]} 4. Nf3 {[%clk 0:02:58]}  dxc4 {[%clk 0:03:00]} 5. a4 {[%clk 0:02:58]}  Bf5 {[%clk 0:03:00]} 6. e3 {[%clk 0:02:57]}  e6 {[%clk 0:03:00]} 7. Bxc4 {[%clk 0:02:56]}  Be7 {[%clk 0:02:58]} 8. O-O {[%clk 0:02:56]}  O-O {[%clk 0:02:59]} 9. Qb3 {[%clk 0:02:53]}  Qc7 {[%clk 0:02:51]} 10. Ne5 {[%clk 0:02:50]}  Nbd7 {[%clk 0:02:46]} 11. f4 {[%clk 0:02:49]}  c5 {[%clk 0:02:39]} 12. Nb5 {[%clk 0:02:10]}  Qc8 {[%clk 0:02:35]} 13. Nxd7 {[%clk 0:01:40]}  Qxd7 {[%clk 0:02:31]} 14. Rd1 {[%clk 0:01:37]}  Rfd8 {[%clk 0:02:18]} 15. Bd2 {[%clk 0:01:30]}  a6 {[%clk 0:02:17]} 16. Ba5 {[%clk 0:01:26]}  axb5 {[%clk 0:02:03]} 17. Bxb5 {[%clk 0:01:26]}  Qc8 {[%clk 0:02:00]} 18. Bxd8 {[%clk 0:01:26]}  Bxd8 {[%clk 0:01:55]} 19. Rac1 {[%clk 0:01:25]}  Be7 {[%clk 0:01:49]} 20. h3 {[%clk 0:01:19]}  Qf8 {[%clk 0:01:44]} 21. Be2 {[%clk 0:01:07]}  cxd4 {[%clk 0:01:38]} 22. Rxd4 {[%clk 0:01:07]}  Bc5 {[%clk 0:01:30]} 23. Rdc4 {[%clk 0:01:08]}  b6 {[%clk 0:01:30]} 24. Bf3 {[%clk 0:01:06]}  Rd8 {[%clk 0:01:23]} 25. Kh2 {[%clk 0:01:06]}  h5 {[%clk 0:00:56]} 26. a5 {[%clk 0:01:04]}  Rb8 {[%clk 0:00:48]} 27. a6 {[%clk 0:01:02]}  Ng4+ {[%clk 0:00:43]} 28. Kh1 {[%clk 0:00:55]}  Nxe3 {[%clk 0:00:38]} 29. Rxc5 {[%clk 0:00:43]}  bxc5 {[%clk 0:00:37]} 30. Qxe3 {[%clk 0:00:43]}  Qe7 {[%clk 0:00:32]} 31. Qxc5 {[%clk 0:00:41]}  Re8 {[%clk 0:00:19]} 32. a7 {[%clk 0:00:41]} 1-0


[Site "https://www.chess.com"]

[Event "Titled Tuesday Blitz October 11 Late 2022"]
[White "Arnold, Ken"]
[Black "Joubert, Dantelle"]
[WhiteFideId "2056836"]
[BlackFideId "14310813"]
[WhiteElo "2354"]
[BlackElo "1507"]
[Result "1-0"]
[Round "07"]
[TimeControl "180+1"]
[Date "2022.10.12"]
[WhiteClock "0:00:09"]
[BlackClock "0:00:03"]

1. d4 {[%clk 0:03:00]}  d5 {[%clk 0:02:56]} 2. c4 {[%clk 0:03:00]}  c6 {[%clk 0:02:54]} 3. Nf3 {[%clk 0:03:00]}  Nf6 {[%clk 0:02:53]} 4. Nc3 {[%clk 0:03:00]}  e6 {[%clk 0:02:53]} 5. Bg5 {[%clk 0:02:59]}  Nbd7 {[%clk 0:02:52]} 6. e3 {[%clk 0:02:59]}  Qa5 {[%clk 0:02:51]} 7. Bxf6 {[%clk 0:02:53]}  Nxf6 {[%clk 0:02:51]} 8. a3 {[%clk 0:02:53]}  Bd6 {[%clk 0:02:28]} 9. Bd3 {[%clk 0:02:48]}  dxc4 {[%clk 0:02:20]} 10. Bxc4 {[%clk 0:02:48]}  O-O {[%clk 0:02:20]} 11. b4 {[%clk 0:02:32]}  Qc7 {[%clk 0:02:19]} 12. e4 {[%clk 0:02:26]}  e5 {[%clk 0:02:18]} 13. O-O {[%clk 0:02:01]}  Bg4 {[%clk 0:02:12]} 14. d5 {[%clk 0:01:21]}  cxd5 {[%clk 0:01:54]} 15. Nxd5 {[%clk 0:01:20]}  Nxd5 {[%clk 0:01:33]} 16. Bxd5 {[%clk 0:01:17]}  Rac8 {[%clk 0:01:16]} 17. h3 {[%clk 0:01:12]}  Bd7 {[%clk 0:01:00]} 18. Qb3 {[%clk 0:01:09]}  Bc6 {[%clk 0:00:40]} 19. Rad1 {[%clk 0:01:01]}  Qe7 {[%clk 0:00:37]} 20. b5 {[%clk 0:00:39]}  Bxd5 {[%clk 0:00:31]} 21. Qxd5 {[%clk 0:00:39]}  Bxa3 {[%clk 0:00:30]} 22. Qxe5 {[%clk 0:00:36]}  Qxe5 {[%clk 0:00:30]} 23. Nxe5 {[%clk 0:00:34]}  Rfe8 {[%clk 0:00:30]} 24. Nd7 {[%clk 0:00:22]}  Rxe4 {[%clk 0:00:25]} 25. Ra1 {[%clk 0:00:21]}  Rc3 {[%clk 0:00:19]} 26. Ra2 {[%clk 0:00:18]}  Rd4 {[%clk 0:00:15]} 27. Rfa1 {[%clk 0:00:17]}  Rxd7 {[%clk 0:00:14]} 28. Rxa3 {[%clk 0:00:17]}  Rxa3 {[%clk 0:00:13]} 29. Rxa3 {[%clk 0:00:18]}  g6 {[%clk 0:00:11]} 30. Rxa7 {[%clk 0:00:18]}  Kg7 {[%clk 0:00:11]} 31. g4 {[%clk 0:00:17]}  h6 {[%clk 0:00:11]} 32. Kg2 {[%clk 0:00:16]}  Rc7 {[%clk 0:00:09]} 33. b6 {[%clk 0:00:15]}  Re7 {[%clk 0:00:10]} 34. f4 {[%clk 0:00:15]}  Rd7 {[%clk 0:00:09]} 35. Kg3 {[%clk 0:00:15]}  Kf6 {[%clk 0:00:09]} 36. Kf3 {[%clk 0:00:14]}  Rd3+ {[%clk 0:00:09]} 37. Ke4 {[%clk 0:00:14]}  Rd7 {[%clk 0:00:08]} 38. h4 {[%clk 0:00:14]}  g5 {[%clk 0:00:08]} 39. fxg5+ {[%clk 0:00:12]}  hxg5 {[%clk 0:00:08]} 40. h5 {[%clk 0:00:13]}  Re7+ {[%clk 0:00:06]} 41. Kd5 {[%clk 0:00:13]}  Rd7+ {[%clk 0:00:06]} 42. Kc5 {[%clk 0:00:13]}  Re7 {[%clk 0:00:06]} 43. Kd6 {[%clk 0:00:11]}  Re6+ {[%clk 0:00:06]} 44. Kc7 {[%clk 0:00:12]}  Re7+ {[%clk 0:00:06]} 45. Kb8 {[%clk 0:00:12]}  Re4 {[%clk 0:00:06]} 46. Rxb7 {[%clk 0:00:12]}  Rxg4 {[%clk 0:00:06]} 47. Rc7 {[%clk 0:00:11]}  Rb4 {[%clk 0:00:06]} 48. b7 {[%clk 0:00:11]}  g4 {[%clk 0:00:05]} 49. Kc8 {[%clk 0:00:11]}  Kg5 {[%clk 0:00:04]} 50. Rxf7 {[%clk 0:00:10]}  Kxh5 {[%clk 0:00:03]} 51. b8=Q {[%clk 0:00:08]}  Rxb8+ {[%clk 0:00:03]} 52. Kxb8 {[%clk 0:00:09]} 1-0


[Site "https://www.chess.com"]

[Event "Titled Tuesday Blitz October 11 Late 2022"]
[White "Averjanov, Alexey"]
[Black "Sztokbant, Bernardo Vainzoff"]
[WhiteFideId "14109867"]
[BlackFideId "2115956"]
[WhiteElo "2655"]
[BlackElo "2171"]
[Result "1-0"]
[Round "07"]
[TimeControl "180+1"]
[Date "2022.10.12"]
[WhiteClock "0:01:08"]
[BlackClock "0:00:05"]

1. d4 {[%clk 0:02:57]}  Nf6 {[%clk 0:02:48]} 2. c4 {[%clk 0:02:57]}  g6 {[%clk 0:02:47]} 3. Nc3 {[%clk 0:02:57]}  d5 {[%clk 0:02:41]} 4. cxd5 {[%clk 0:02:58]}  Nxd5 {[%clk 0:02:42]} 5. e4 {[%clk 0:02:58]}  Nxc3 {[%clk 0:02:33]} 6. bxc3 {[%clk 0:02:59]}  Bg7 {[%clk 0:02:34]} 7. Nf3 {[%clk 0:03:00]}  c5 {[%clk 0:02:32]} 8. Be3 {[%clk 0:03:01]}  O-O {[%clk 0:02:26]} 9. Qd2 {[%clk 0:03:01]}  Nc6 {[%clk 0:02:26]} 10. Rc1 {[%clk 0:03:00]}  b6 {[%clk 0:02:16]} 11. d5 {[%clk 0:03:00]}  Na5 {[%clk 0:02:12]} 12. c4 {[%clk 0:02:58]}  e6 {[%clk 0:02:12]} 13. Be2 {[%clk 0:02:58]}  exd5 {[%clk 0:02:05]} 14. exd5 {[%clk 0:02:56]}  Nb7 {[%clk 0:02:04]} 15. O-O {[%clk 0:02:55]}  Nd6 {[%clk 0:02:03]} 16. Bf4 {[%clk 0:02:54]}  Re8 {[%clk 0:02:03]} 17. Rfe1 {[%clk 0:02:53]}  Bg4 {[%clk 0:01:58]} 18. h3 {[%clk 0:02:52]}  Bxf3 {[%clk 0:01:56]} 19. Bxf3 {[%clk 0:02:53]}  Nf5 {[%clk 0:01:53]} 20. Rxe8+ {[%clk 0:02:50]}  Qxe8 {[%clk 0:01:54]} 21. Re1 {[%clk 0:02:50]}  Qd7 {[%clk 0:01:47]} 22. d6 {[%clk 0:02:41]}  Rd8 {[%clk 0:01:46]} 23. Bg4 {[%clk 0:02:36]}  h5 {[%clk 0:01:46]} 24. Re7 {[%clk 0:02:29]}  hxg4 {[%clk 0:01:16]} 25. Rxd7 {[%clk 0:02:28]}  Rxd7 {[%clk 0:01:17]} 26. hxg4 {[%clk 0:02:28]}  Nxd6 {[%clk 0:01:17]} 27. Qd5 {[%clk 0:02:17]}  Bf8 {[%clk 0:01:04]} 28. Qc6 {[%clk 0:02:11]}  Rd8 {[%clk 0:00:58]} 29. Qc7 {[%clk 0:02:10]}  Rc8 {[%clk 0:00:52]} 30. Qd7 {[%clk 0:02:05]}  Re8 {[%clk 0:00:25]} 31. Kh2 {[%clk 0:01:58]}  Re6 {[%clk 0:00:25]} 32. Qxa7 {[%clk 0:01:56]}  Nxc4 {[%clk 0:00:26]} 33. Qb8 {[%clk 0:01:50]}  Nd6 {[%clk 0:00:06]} 34. Qxb6 {[%clk 0:01:41]}  Ne4 {[%clk 0:00:07]} 35. Qd8 {[%clk 0:01:39]}  Nxf2 {[%clk 0:00:06]} 36. Kg3 {[%clk 0:01:21]}  Ne4+ {[%clk 0:00:06]} 37. Kf3 {[%clk 0:01:21]}  Nf6 {[%clk 0:00:01]} 38. g5 {[%clk 0:01:13]}  Nh7 {[%clk 0:00:02]} 39. a4 {[%clk 0:01:11]}  Kg7 {[%clk 0:00:02]} 40. a5 {[%clk 0:01:10]}  c4 {[%clk 0:00:02]} 41. Qd4+ {[%clk 0:01:08]}  Kg8 {[%clk 0:00:02]} 42. Qxc4 {[%clk 0:01:08]}  Be7 {[%clk 0:00:02]} 43. a6 {[%clk 0:01:07]}  Nxg5+ {[%clk 0:00:02]} 44. Bxg5 {[%clk 0:01:07]}  Bxg5 {[%clk 0:00:03]} 45. a7 {[%clk 0:01:06]}  Re3+ {[%clk 0:00:02]} 46. Kf2 {[%clk 0:01:06]}  Ra3 {[%clk 0:00:03]} 47. Qc8+ {[%clk 0:01:06]}  Kg7 {[%clk 0:00:03]} 48. a8=Q {[%clk 0:01:07]}  Rxa8 {[%clk 0:00:03]} 49. Qxa8 {[%clk 0:01:07]}  Bf6 {[%clk 0:00:04]} 50. Qd5 {[%clk 0:01:07]}  g5 {[%clk 0:00:03]} 51. Kf3 {[%clk 0:01:08]}  Kg6 {[%clk 0:00:03]} 52. g4 {[%clk 0:01:08]}  Bg7 {[%clk 0:00:03]} 53. Qf5+ {[%clk 0:01:09]}  Kh6 {[%clk 0:00:03]} 54. Qxf7 {[%clk 0:01:09]}  Kh7 {[%clk 0:00:04]} 55. Qh5+ {[%clk 0:01:08]}  Bh6 {[%clk 0:00:04]} 56. Ke4 {[%clk 0:01:09]}  Kg7 {[%clk 0:00:04]} 57. Kf5 {[%clk 0:01:09]}  Kh7 {[%clk 0:00:05]} 58. Kf6 {[%clk 0:01:08]}  Kg8 {[%clk 0:00:05]} 59. Qg6+ {[%clk 0:01:08]} 1-0


[Site "https://www.chess.com"]